bitfinex/quotes_BTCUSD_20260307
["timestamp","ask_amount","ask_price","bid_price","bid_amount"]
[1772885055435,0.00022001,68068.0,68061.0,0.07346351]
[1772885055637,0.00022001,68068.0,68062.0,0.03051787]
[1772885057478,0.0004,68075.0,68063.0,0.07346135]
[1772885057683,0.0004,68075.0,68064.0,0.03051787]
[1772885057883,0.0004,68075.0,68066.0,0.03051787]
[1772885059668,0.00062001,68075.0,68067.0,0.07345703]
[1772885062042,0.00046495,68075.0,68067.0,0.07345703]
[1772885066127,0.00030989,68075.0,68067.0,0.07345703]
[1772885067984,0.00015482,68075.0,68067.0,0.07345703]
[1772885069540,0.098321,68078.0,68068.0,0.02868889]
[1772885069541,0.00575,68078.0,68068.0,0.02868889]
[1772885069739,0.00575,68078.0,68067.0,0.07345703]
[1772885069740,0.0068,68100.0,68067.0,0.07345703]
[1772885069741,0.07373342,68091.0,68067.0,0.07345703]
[1772885069943,0.01912581,68089.0,68067.0,0.07345703]
[1772885070151,0.01912581,68087.0,68068.0,0.00148]
[1772885070569,0.07343653,68086.0,68066.0,0.07345703]
[1772885070897,0.01912581,68085.0,68067.0,0.00148]
[1772885071098,0.01912581,68085.0,68066.0,0.07345703]
[1772885071300,0.01912581,68085.0,68067.0,0.00148]
[1772885071669,0.01942781,68085.0,68068.0,0.00148]
[1772885072430,0.01942781,68085.0,68069.0,0.00148]
[1772885072956,0.01868469,68083.0,68070.0,0.00148]
[1772885073341,0.01868469,68083.0,68067.0,0.02866121]
[1772885073514,0.01868469,68083.0,68071.0,0.00148]
[1772885073755,0.01878519,68083.0,68071.0,0.00148]
[1772885074913,0.07344085,68082.0,68072.0,0.07345163]
[1772885075720,0.07344085,68082.0,68072.0,0.10208204]
[1772885075721,0.0001005,68082.0,68072.0,0.10208204]
[1772885075917,0.0001005,68082.0,68073.0,0.02863041]
[1772885076849,0.0001005,68082.0,68072.0,0.07345163]
[1772885086126,0.0001005,68082.0,68072.0,0.10213297]
[1772885092014,0.0001005,68082.0,68072.0,0.10233297]
[1772885099337,0.0001005,68082.0,68073.0,0.02907164]
[1772885101572,0.0001005,68082.0,68074.0,0.07344948]
[1772885102824,0.0001005,68082.0,68075.0,0.02832753]
[1772885103623,0.0001005,68082.0,68076.0,0.07344732]
[1772885105019,0.0001005,68082.0,68073.0,0.07344948]
[1772885105217,0.0001005,68082.0,68073.0,0.10177701]
[1772885105775,0.0001005,68082.0,68073.0,0.07344948]
[1772885105956,0.0001005,68082.0,68074.0,0.02832753]
[1772885106825,0.07343222,68090.0,68075.0,0.01938372]
[1772885106990,0.07343222,68090.0,68078.0,0.02832753]
[1772885106991,0.07343227,68090.0,68078.0,0.02832753]
[1772885107195,0.07491227,68090.0,68080.0,0.02832753]
[1772885107391,0.07343075,68092.0,68080.0,0.02832753]
[1772885107392,0.07343119,68091.0,68080.0,0.02832753]
[1772885107549,0.07343224,68090.0,68080.0,0.02832753]
[1772885109170,0.07343224,68090.0,68082.0,0.02832753]
[1772885110293,0.00062171,68089.0,68082.0,0.02832753]
[1772885110497,0.00062171,68089.0,68083.0,0.07343977]
[1772885111487,0.00062171,68089.0,68080.0,0.02832753]
[1772885117135,0.00062171,68089.0,68081.0,0.07344192]
[1772885118117,0.01913064,68088.0,68078.0,0.07344452]
[1772885118539,0.02061064,68088.0,68078.0,0.05333989]
[1772885118805,0.02061064,68088.0,68078.0,0.03323526]
[1772885119254,0.07343545,68087.0,68077.0,0.07344615]
[1772885121475,0.07343545,68087.0,68076.0,0.0002]
[1772885122840,0.09404502,68088.0,68076.0,0.02852753]
[1772885123659,0.07491438,68088.0,68077.0,0.07344624]
[1772885123860,0.07491438,68088.0,68078.0,0.02832753]
[1772885124074,0.00148,68088.0,68078.0,0.02832753]
[1772885124847,0.00210171,68089.0,68078.0,0.02832753]
[1772885126060,0.00210171,68089.0,68079.0,0.07344408]
[1772885126400,0.07553511,68089.0,68079.0,0.07344408]
[1772885126812,0.00210171,68089.0,68079.0,0.07344408]
[1772885129553,0.01913064,68088.0,68079.0,0.07344408]
[1772885130945,0.01913064,68088.0,68078.0,0.0002]
[1772885131234,0.09256514,68088.0,68078.0,0.0002]
[1772885133227,0.01913064,68088.0,68078.0,0.0002]
[1772885134261,0.00210171,68089.0,68078.0,0.0002]
[1772885138509,0.07553544,68089.0,68078.0,0.0002]
[1772885138670,0.09535243,68089.0,68078.0,0.0002]
[1772885138868,0.07553544,68089.0,68078.0,0.0002]
[1772885139085,0.01981699,68088.0,68072.0,0.0535695]
[1772885139325,0.01981699,68088.0,68070.0,0.07345163]
[1772885139326,0.01981699,68088.0,68071.0,0.07365269]
[1772885139887,0.01981699,68088.0,68071.0,0.0002]
[1772885140902,0.01981699,68086.0,68071.0,0.0002]
[1772885142940,0.01981699,68084.0,68071.0,0.0002]
[1772885143258,0.00148,68083.0,68071.0,0.0002]
[1772885144875,0.07344085,68082.0,68071.0,0.0002]
[1772885147581,0.07344085,68082.0,68071.0,2.946e-05]
[1772885147937,0.01981699,68081.0,68071.0,2.946e-05]
[1772885148143,0.01981699,68081.0,68066.0,0.00153893]
[1772885148430,0.07344085,68082.0,68066.0,0.00153893]
[1772885148631,0.07344085,68082.0,68067.0,0.0263051]
[1772885149110,0.07344085,68082.0,68068.0,0.07345595]
[1772885151263,0.01981699,68081.0,68068.0,0.07345595]
[1772885152364,1.194564,68080.0,68064.0,0.0002]
[1772885152611,0.01981699,68079.0,68059.0,0.0002]
[1772885153072,0.01981699,68077.0,68059.0,0.0002]
[1772885153292,0.01981699,68075.0,68059.0,0.0002]
[1772885153475,0.01981699,68075.0,68055.0,0.07372705]
[1772885154918,0.04708807,68070.0,68055.0,0.07372705]
[1772885155118,0.07345595,68068.0,68055.0,0.07372705]
[1772885156302,0.07345595,68068.0,68055.0,0.07384761]
[1772885157322,0.07345595,68068.0,68053.0,0.07347158]
[1772885157323,0.01981699,68067.0,68052.0,0.07367299]
[1772885157558,0.01993746,68067.0,68052.0,0.07367299]
[1772885157957,0.01993746,68067.0,68055.0,0.0002]
[1772885159178,0.07345811,68066.0,68055.0,0.0002]
[1772885159381,0.01981699,68065.0,68055.0,0.0002]
[1772885160784,0.01812032,68064.0,68048.0,0.0002]
[1772885160986,0.01812032,68059.0,68045.0,0.0001832]
[1772885161162,0.07346674,68058.0,68045.0,0.0001832]
[1772885161364,0.01960032,68057.0,68045.0,0.0001832]
[1772885161764,0.01960032,68057.0,68041.0,0.0002]
[1772885162406,0.04708807,68051.0,68041.0,1e-08]
[1772885162606,0.04708807,68051.0,68031.0,0.02808435]
[1772885162607,0.02095379,68050.0,68031.0,0.02808435]
[1772885162751,0.02095379,68050.0,68028.0,0.07369864]
[1772885162942,0.01947379,68048.0,68028.0,0.07369864]
[1772885163343,0.01947379,68046.0,68028.0,0.07369864]
[1772885163582,0.01947379,68046.0,68028.0,0.0002]
[1772885164453,0.04708807,68040.0,68028.0,0.0002]
[1772885164668,0.00148,68039.0,68028.0,0.0005743]
[1772885165434,0.07348834,68038.0,68028.0,0.0005743]
[1772885167149,0.07333327,68038.0,68028.0,0.0005743]
[1772885167746,0.07333327,68038.0,68028.0,0.07407296]
[1772885168739,0.08234017,68038.0,68028.0,0.07407296]
[1772885169371,0.08234017,68038.0,68028.0,0.0005743]
[1772885169987,0.08234017,68038.0,68025.0,0.00401]
[1772885170181,0.08234017,68038.0,68025.0,0.00413056]
[1772885171585,0.08234017,68038.0,68028.0,0.0002]
[1772885173863,0.01023294,68037.0,68028.0,0.0002]
[1772885174866,0.07496834,68039.0,68031.0,0.01935468]
[1772885174867,0.00148,68039.0,68031.0,0.01935468]
[1772885175061,0.00148,68038.0,68033.0,0.01935468]
[1772885175222,0.00148,68043.0,68036.0,0.01935468]
[1772885175425,0.00148,68044.0,68040.0,0.01935468]
[1772885175861,0.08339018,68050.0,68040.0,0.01935468]
[1772885177085,0.00148,68049.0,68040.0,0.01935468]
[1772885178142,0.07348078,68045.0,68040.0,0.01935468]
[1772885178720,0.07495743,68049.0,68040.0,0.01935468]
[1772885178721,0.07347862,68047.0,68040.0,0.0928405]
[1772885180143,0.07347862,68047.0,68040.0,0.01935468]
[1772885181328,0.07347819,68048.0,68040.0,0.09284046]
[1772885184865,0.0736982,68048.0,68040.0,0.01935468]
[1772885185892,0.0736982,68048.0,68039.0,0.07348723]
[1772885187482,0.0736982,68048.0,68038.0,0.07348748]
[1772885191592,0.0736982,68048.0,68038.0,0.07368748]
[1772885195632,0.00148,68047.0,68038.0,0.07368748]
[1772885195999,0.0736982,68048.0,68038.0,0.07368748]
[1772885196222,0.00148,68046.0,68038.0,0.07368748]
[1772885196623,0.00148,68048.0,68039.0,0.01982105]
[1772885197607,0.07347762,68048.0,68040.0,0.07348618]
[1772885197929,0.07495762,68048.0,68040.0,0.07348618]
[1772885198121,0.07347762,68048.0,68040.0,0.07348618]
[1772885198333,0.00148,68048.0,68040.0,0.07348618]
[1772885198546,0.07495762,68048.0,68040.0,0.07348618]
[1772885199527,0.07517763,68048.0,68040.0,0.07348618]
[1772885203615,0.07517763,68048.0,68039.0,0.07348618]
[1772885203817,0.07369763,68048.0,68039.0,0.07348618]
[1772885210771,0.00148,68049.0,68040.0,0.01982105]
[1772885210949,0.07347754,68050.0,68040.0,0.01982105]
[1772885211151,0.07495754,68050.0,68040.0,0.01982105]
[1772885211477,0.00022001,68053.0,68040.0,0.01982105]
[1772885211632,0.00934264,68057.0,68040.0,0.01982105]
[1772885211633,0.00170001,68055.0,68040.0,0.01982105]
[1772885212056,0.00022001,68048.0,68040.0,0.01982105]
[1772885212639,0.00022001,68048.0,68041.0,0.0734851]
[1772885214351,0.00022001,68048.0,68041.0,0.0744851]
[1772885215059,0.00022001,68048.0,68041.0,0.0734851]
[1772885215459,0.00022001,68048.0,68042.0,0.01982105]
[1772885217145,0.00022001,68048.0,68043.0,0.09330399]
[1772885220519,0.00022001,68048.0,68043.0,0.07348294]
[1772885220719,0.00022001,68048.0,68043.0,0.07448294]
[1772885220921,0.00022001,68048.0,68043.0,0.07348294]
[1772885221339,0.00022001,68048.0,68043.0,0.07448294]
[1772885221533,0.00022001,68048.0,68043.0,0.07348294]
[1772885221747,0.00022001,68048.0,68043.0,0.07448294]
[1772885223363,0.00022001,68048.0,68042.0,0.07348294]
[1772885225279,0.00031351,68048.0,68042.0,0.07448294]
[1772885226439,0.00031351,68048.0,68042.0,0.07348294]
[1772885226639,0.00031351,68048.0,68032.0,0.0002]
[1772885226640,0.00870026,68045.0,68038.0,0.03343228]
[1772885226898,0.00870026,68044.0,68038.0,0.03343228]
[1772885227196,0.00870026,68044.0,68035.0,0.07497151]
[1772885227491,0.0821832,68043.0,68042.0,0.001]
[1772885227652,0.07348294,68043.0,68036.0,0.07349019]
[1772885227858,0.00870026,68042.0,68036.0,0.07349019]
[1772885231922,0.07348418,68042.0,68033.0,0.07349374]
[1772885232127,0.00991372,68041.0,68033.0,0.07349374]
[1772885232788,0.00991372,68041.0,68036.0,0.0002]
[1772885241539,0.07348571,68041.0,68033.0,0.07349374]
[1772885241739,0.00991372,68040.0,68032.0,0.07517463]
[1772885241935,0.00991372,68040.0,68032.0,0.07369463]
[1772885243521,0.00991372,68040.0,68032.0,0.0002]
[1772885244668,0.00991372,68039.0,68032.0,0.0002]
[1772885258126,0.00605409,68039.0,68032.0,0.0002]
[1772885260233,0.0062741,68039.0,68032.0,0.0002]
[1772885269521,0.0062741,68039.0,68022.0,0.0002]
[1772885269522,0.00798391,68037.0,68022.0,0.0002]
[1772885269733,0.07370765,68039.0,68021.0,0.07370663]
[1772885269734,0.04712758,68034.0,68021.0,0.07370667]
[1772885270011,0.00798391,68033.0,68021.0,0.0002]
[1772885270601,0.00798391,68030.0,68021.0,0.0002]
[1772885270805,0.00798391,68028.0,68021.0,0.0002]
[1772885272753,0.00798391,68026.0,68021.0,0.0002]
[1772885272951,0.00798391,68026.0,68014.0,0.0002]
[1772885274572,0.07350238,68025.0,68014.0,0.0002]
[1772885274719,0.00798391,68024.0,68014.0,0.0002]
[1772885275060,0.00798391,68022.0,68014.0,0.0002]
[1772885275272,0.00798391,68022.0,68011.0,0.0002]
[1772885276675,0.00798391,68020.0,68011.0,0.0002]
[1772885278649,0.00798391,68018.0,68011.0,0.0002]
[1772885278828,0.00798391,68016.0,68011.0,0.0002]
[1772885281033,0.00798391,68014.0,68011.0,0.0002]
[1772885284538,0.08149818,68014.0,68011.0,0.0002]
[1772885284788,0.08149818,68014.0,68007.0,0.07372083]
[1772885284789,0.07351427,68014.0,68007.0,0.07372083]
[1772885284931,0.07351427,68014.0,68000.0,0.002]
[1772885284932,0.07351643,68012.0,68003.0,0.0001236]
[1772885285142,0.00798391,68010.0,68003.0,0.0001236]
[1772885287803,0.07351968,68009.0,68003.0,0.0003236]
[1772885288335,0.07336458,68009.0,68003.0,0.0003236]
[1772885291127,0.00798391,68008.0,68003.0,0.0003236]
[1772885291854,0.00798391,68008.0,68000.0,0.002]
[1772885292031,0.00798391,68008.0,67991.0,0.01976191]
[1772885292236,0.00798391,68008.0,67989.0,0.0002]
[1772885292237,0.00798391,68008.0,67990.0,0.01976191]
[1772885292238,0.00798391,68006.0,67990.0,0.01976191]
[1772885292436,0.00148,68005.0,67990.0,0.01976191]
[1772885292746,0.00798391,68006.0,67990.0,0.01976191]
[1772885292969,0.00798391,68004.0,67992.0,0.01976191]
[1772885294864,0.00946391,68003.0,67992.0,0.01976191]
[1772885295269,0.07352724,68002.0,67993.0,0.07353698]
[1772885295574,0.07337214,68002.0,67993.0,0.07353698]
[1772885295717,0.00798391,68001.0,67990.0,0.0002]
[1772885297743,0.00798391,67999.0,67990.0,0.0002]
[1772885297951,0.00798391,67999.0,67983.0,0.0737475]
[1772885298301,0.00798391,67992.0,67983.0,0.07374754]
[1772885298458,0.00786478,67992.0,67983.0,0.0002]
[1772885299660,0.07353914,67991.0,67983.0,0.0002]
[1772885299861,0.00788066,67990.0,67983.0,0.0002]
[1772885300244,0.00783698,67990.0,67983.0,0.0002]
[1772885301192,0.07353914,67991.0,67975.0,0.0004]
[1772885301193,0.00148,67989.0,67975.0,0.0004]
[1772885301392,0.00788066,67988.0,67976.0,0.07375497]
[1772885301642,0.00136088,67987.0,67976.0,0.07375497]
[1772885301796,0.00136088,67987.0,67979.0,0.01976191]
[1772885302003,0.07354455,67986.0,67979.0,0.01976191]
[1772885302204,0.07354455,67986.0,67983.0,0.0002]
[1772885302205,0.00788066,67985.0,67983.0,0.0002]
[1772885302746,0.00788066,67985.0,67976.0,0.07375525]
[1772885302905,0.00800094,67985.0,67976.0,0.07375525]
[1772885304409,0.07354671,67984.0,67976.0,0.0002]
[1772885304970,0.00788066,67983.0,67976.0,0.0002]
[1772885307365,0.0814292,67983.0,67980.0,0.0090069]
[1772885308862,0.0814292,67983.0,67980.0,0.0092069]
[1772885309281,0.00012028,67985.0,67980.0,0.0092069]
[1772885309485,0.00788066,67984.0,67980.0,0.0092069]
[1772885310018,0.00012028,67985.0,67980.0,0.0092069]
[1772885310346,0.07353914,67991.0,67980.0,0.0092069]
[1772885310347,0.00148,67991.0,67981.0,0.01976191]
[1772885310549,0.00148,67991.0,67981.0,0.02016376]
[1772885310753,0.00148,67992.0,67981.0,0.00040185]
[1772885310881,0.00148,67992.0,67982.0,0.01976191]
[1772885311887,0.07353376,67996.0,67982.0,0.01976191]
[1772885312244,0.00148,67995.0,67984.0,0.01833718]
[1772885315673,0.07501537,67995.0,67986.0,0.01833718]
[1772885317020,0.07523538,67995.0,67986.0,0.01833718]
[1772885317632,0.00022001,67995.0,67987.0,0.07354347]
[1772885317841,0.00022001,67995.0,67987.0,0.09188065]
[1772885319018,0.00022001,67995.0,67988.0,0.01833718]
[1772885319261,0.00022001,68001.0,67988.0,0.01833718]
[1772885319435,0.00022001,68001.0,67987.0,0.07354347]
[1772885319656,0.00022001,68001.0,67989.0,0.0735413]
[1772885319821,0.07522859,68001.0,67990.0,0.01833718]
[1772885322624,0.07522859,68001.0,67991.0,0.07353914]
[1772885328154,0.00170001,68001.0,67991.0,0.07353914]
[1772885328497,0.00170001,68001.0,67991.0,0.09187632]
[1772885333622,0.00873337,68001.0,67987.0,0.09188065]
[1772885337279,0.00873337,68001.0,67988.0,0.01833718]
[1772885337483,0.00725337,68001.0,67988.0,0.01833718]
[1772885337647,0.00148,68000.0,67988.0,0.01833718]
[1772885338696,0.00148,68000.0,67989.0,0.09187848]
[1772885339099,0.00703336,67999.0,67989.0,0.0735413]
[1772885340812,0.00703336,67999.0,67988.0,0.0735413]
[1772885341690,0.00851336,67999.0,67988.0,0.0735413]
[1772885343127,0.00671354,67998.0,67988.0,0.0735413]
[1772885345486,0.00671354,67998.0,67988.0,0.0737413]
[1772885345745,0.08024521,67998.0,67988.0,0.0737413]
[1772885346304,0.00665929,67997.0,67988.0,0.0737413]
[1772885348037,0.08019236,67997.0,67988.0,0.0737413]
[1772885348246,0.00663264,67996.0,67988.0,0.0737413]
[1772885349726,0.00663264,67995.0,67988.0,0.0002]
[1772885352569,0.08011125,67994.0,67988.0,0.0002]
[1772885353177,0.00657535,67994.0,67988.0,0.0002]
[1772885354542,0.00703945,67994.0,67988.0,0.0002]
[1772885355849,0.0004641,67994.0,67988.0,0.0002]
[1772885356044,0.07353248,67998.0,67988.0,0.0002]
[1772885356045,0.08008137,67998.0,67988.0,0.0002]
[1772885356606,0.00148,67997.0,67988.0,0.0002]
[1772885357024,0.08008137,67998.0,67988.0,0.0002]
[1772885357234,0.00148,67997.0,67988.0,0.0002]
[1772885357857,0.00148,67997.0,67988.0,0.07374238]
[1772885358079,0.07353317,67997.0,67988.0,0.07374238]
[1772885358373,0.07501317,67997.0,67988.0,0.07374238]
[1772885361964,0.0815121,67997.0,67988.0,0.07374238]
[1772885362170,0.00649893,67996.0,67988.0,0.07374238]
[1772885362913,0.00649893,67996.0,67987.0,0.07354238]
[1772885363261,0.00649893,67994.0,67988.0,0.0002]
[1772885365726,0.00649893,67993.0,67988.0,0.0002]
[1772885367336,0.00649893,67993.0,67982.0,0.0002]
[1772885367533,0.00649893,67993.0,67980.0,0.0092069]
[1772885367534,0.00666184,67991.0,67980.0,0.0092069]
[1772885367759,0.00666184,67989.0,67980.0,0.0092069]
[1772885368605,0.00666184,67989.0,67980.0,0.08275732]
[1772885369873,0.07354238,67988.0,67980.0,0.08275732]
[1772885372690,0.08013165,67988.0,67980.0,0.08275732]
[1772885376757,0.00654098,67987.0,67980.0,0.08275732]
[1772885383952,0.00022001,68000.0,67980.0,0.08275732]
[1772885384124,0.00148,67996.0,67980.0,0.08315937]
[1772885384356,0.07353172,67998.0,67984.0,0.01989695]
[1772885384560,0.07353172,67998.0,67986.0,0.00630762]
[1772885384737,0.00022001,67988.0,67982.0,0.00630762]
[1772885384934,0.00022001,67988.0,67984.0,0.00630762]
[1772885385132,0.00022001,67995.0,67982.0,0.00630762]
[1772885385345,0.00022001,67995.0,67984.0,0.00630762]
[1772885385582,0.00022001,67995.0,67985.0,0.00630762]
[1772885385771,0.00022001,67995.0,67986.0,0.01989695]
[1772885386948,0.00022001,67995.0,67987.0,0.07354347]
[1772885387159,0.00022001,67995.0,67987.0,0.09344042]
[1772885387353,0.00022001,67995.0,67988.0,0.01989695]
[1772885387838,0.00148,67996.0,67988.0,0.01989695]
[1772885387971,0.07375002,68000.0,67988.0,0.02347042]
[1772885388173,0.00148,67999.0,67988.0,0.02347042]
[1772885388897,0.00148,67998.0,67989.0,0.0735413]
[1772885389094,0.00148,67997.0,67989.0,0.09343825]
[1772885389621,0.07353079,67999.0,67989.0,0.09343825]
[1772885389830,0.00148,67997.0,67989.0,0.09343825]
[1772885390005,0.07353079,67999.0,67989.0,0.09343825]
[1772885390206,0.00148,67998.0,67989.0,0.09343825]
[1772885390576,0.07353079,67999.0,67989.0,0.09343825]
[1772885390577,0.00148,67997.0,67989.0,0.09343825]
[1772885391333,0.00022001,67995.0,67989.0,0.09343825]
[1772885392827,0.00609065,67994.0,67980.0,0.08315917]
[1772885393025,0.00148,67993.0,67985.0,0.07354563]
[1772885394964,0.08110794,67993.0,67985.0,0.07354563]
[1772885398247,0.08110794,67993.0,67985.0,0.07374563]
[1772885399119,0.07962794,67993.0,67985.0,0.07374563]
[1772885399471,0.08110794,67993.0,67985.0,0.07374563]
[1772885399774,0.00757065,67993.0,67985.0,0.07374563]
[1772885401080,0.00673027,67991.0,67985.0,0.0002]
[1772885402494,0.00673027,67991.0,67981.0,0.07354917]
[1772885404971,0.07354022,67990.0,67981.0,0.07354917]
[1772885407479,0.07354022,67991.0,67981.0,0.07354917]
[1772885407679,0.00673027,67990.0,67981.0,0.07354917]
[1772885407871,0.00673027,67990.0,67981.0,0.07374917]
[1772885410249,0.08027061,67990.0,67981.0,0.07374917]
[1772885411019,0.07354034,67990.0,67981.0,0.07374917]
[1772885415029,0.07354034,67990.0,67981.0,0.07408087]
[1772885417249,0.08033737,67991.0,67981.0,0.07408087]
[1772885422982,0.00657757,67989.0,67978.0,0.07387603]
[1772885423236,0.00657757,67987.0,67978.0,0.07387603]
[1772885423386,0.00805757,67987.0,67978.0,0.07387603]
[1772885425665,0.07354455,67986.0,67981.0,0.0002]
[1772885426476,0.00657757,67985.0,67981.0,0.0002]
[1772885430456,0.07354671,67984.0,67981.0,0.0002]
[1772885430628,0.00657757,67983.0,67981.0,0.0002]
[1772885433202,0.08012627,67983.0,67981.0,0.0002]
[1772885435383,0.00657757,67983.0,67978.0,0.0003229]
[1772885436946,0.07354888,67982.0,67978.0,0.0003229]
[1772885437103,0.08012645,67982.0,67978.0,0.0003229]
[1772885439550,0.00657757,67982.0,67978.0,0.0003229]
[1772885439962,0.07354795,67983.0,67978.0,0.0003229]
[1772885441189,0.07376796,67983.0,67978.0,0.0003229]
[1772885441782,0.00594661,67982.0,67978.0,0.0003229]
[1772885442696,0.00594661,67982.0,67974.0,0.07355744]
[1772885443076,0.00594661,67982.0,67972.0,0.07368164]
[1772885443704,0.07290809,67981.0,67972.0,0.07368164]
[1772885443909,0.07226621,67981.0,67972.0,0.07368164]
[1772885444487,0.07226621,67981.0,67972.0,0.0001229]
[1772885444699,0.00594661,67980.0,67972.0,0.0001229]
[1772885445049,0.00594661,67980.0,67970.0,0.00575]
[1772885445867,0.00594661,67972.0,67954.0,0.00419454]
[1772885446188,0.00148,67972.0,67960.0,0.01984225]
[1772885446366,0.00148,67972.0,67963.0,0.00417326]
[1772885446580,0.00148,67972.0,67964.0,0.01984225]
[1772885446786,0.00594661,67978.0,67964.0,0.01984225]
[1772885446787,0.00148,67973.0,67964.0,0.01984225]
[1772885448391,0.0735597,67972.0,67964.0,0.09341015]
[1772885450293,0.0735597,67972.0,67964.0,0.0735679]
[1772885450294,0.00594661,67971.0,67964.0,0.0735679]
[1772885450667,0.07356186,67970.0,67962.0,0.07356982]
[1772885451245,0.07950847,67970.0,67964.0,0.0002]
[1772885452065,0.00594661,67970.0,67964.0,0.0002]
[1772885452642,0.07356083,67971.0,67964.0,0.0002]
[1772885452821,0.0735597,67972.0,67964.0,0.02004225]
[1772885453039,0.00148,67971.0,67964.0,0.02004225]
[1772885453976,0.0750397,67972.0,67964.0,0.02004225]
[1772885454851,0.0735597,67972.0,67965.0,0.07356727]
[1772885455176,0.0750397,67972.0,67965.0,0.07356727]
[1772885455322,0.0735597,67972.0,67965.0,0.07339664]
[1772885455538,0.0750397,67972.0,67965.0,0.07339664]
[1772885455748,0.0735597,67972.0,67965.0,0.07322603]
[1772885455945,0.0750397,67972.0,67965.0,0.07305543]
[1772885461565,0.0750397,67972.0,67964.0,0.0002]
[1772885462151,0.08138701,67972.0,67964.0,0.0002]
[1772885462550,0.00634731,67971.0,67964.0,0.0002]
[1772885463742,0.07356186,67970.0,67964.0,0.0002]
[1772885465131,0.07356186,67970.0,67964.0,0.01951119]
[1772885468240,0.07356186,67970.0,67964.0,0.0002]
[1772885477699,0.07356186,67972.0,67965.0,0.01931119]
[1772885477889,0.07504186,67972.0,67965.0,0.01931119]
[1772885478078,0.07356186,67972.0,67965.0,0.01931119]
[1772885478247,0.0001549,67977.0,67965.0,0.01931119]
[1772885478446,0.0001549,67977.0,67966.0,0.01931119]
[1772885478447,0.00148,67976.0,67966.0,0.01931119]
[1772885478745,0.00148,67976.0,67968.0,0.01931119]
[1772885480111,0.08634021,67977.0,67969.0,0.07356294]
[1772885480309,0.00148,67976.0,67969.0,0.07356294]
[1772885481584,0.08634021,67977.0,67969.0,0.07356294]
[1772885481803,0.00148,67976.0,67969.0,0.07356294]
[1772885482615,0.08634021,67977.0,67969.0,0.07356294]
[1772885482944,0.00148,67976.0,67969.0,0.07356294]
[1772885483106,0.08634021,67977.0,67969.0,0.07356294]
[1772885483304,0.00148,67976.0,67969.0,0.07356294]
[1772885483643,0.08634021,67977.0,67969.0,0.07356294]
[1772885483842,0.00148,67976.0,67969.0,0.07356294]
[1772885484090,0.08634021,67977.0,67969.0,0.07356294]
[1772885484267,0.00148,67976.0,67969.0,0.07356294]
[1772885485062,0.08634021,67977.0,67969.0,0.07356294]
[1772885485266,0.00148,67976.0,67969.0,0.07356294]
[1772885485426,0.07354892,67982.0,67970.0,0.02334918]
[1772885485625,0.07355103,67981.0,67970.0,0.02334918]
[1772885486552,0.00022001,67976.0,67971.0,0.07356078]
[1772885486755,0.00022001,67976.0,67972.0,0.01931119]
[1772885487724,0.07355103,67981.0,67972.0,0.02398393]
[1772885488324,0.07355103,67981.0,67971.0,0.07356078]
[1772885489446,0.07355103,67981.0,67971.0,0.09287197]
[1772885489778,0.07524815,67983.0,67974.0,0.00623013]
[1772885489974,0.07524815,67983.0,67975.0,0.00623013]
[1772885490179,0.07502705,67983.0,67971.0,0.07356078]
[1772885490392,0.07502705,67983.0,67972.0,0.01931119]
[1772885490586,0.07502705,67983.0,67974.0,0.01931119]
[1772885490911,0.07502705,67983.0,67971.0,0.07356078]
[1772885490912,0.07502705,67983.0,67976.0,0.07355537]
[1772885491240,0.07354783,67983.0,67976.0,0.07355537]
[1772885493971,0.07376784,67983.0,67976.0,0.07355537]
[1772885494295,0.05376673,67983.0,67976.0,0.07355537]
[1772885494499,0.01638457,67983.0,67976.0,0.0797855]
[1772885498233,0.01638457,67983.0,67975.0,0.07355605]
[1772885500309,0.01638457,67983.0,67976.0,0.0002]
[1772885504550,0.00015,67984.0,67977.0,0.00700969]
[1772885507267,0.00015,67984.0,67978.0,0.0735532]
[1772885508309,0.00022001,67983.0,67978.0,0.0735532]
[1772885508873,0.00069941,67983.0,67978.0,0.0735532]
[1772885509310,0.00069941,67983.0,67977.0,0.0735532]
[1772885521001,0.00069941,67983.0,67974.0,0.07355753]
[1772885521002,0.00682396,67982.0,67974.0,0.07355753]
[1772885521201,0.00682396,67981.0,67972.0,0.07355964]
[1772885521582,0.00682396,67980.0,67972.0,0.07355964]
[1772885521804,0.00730336,67980.0,67971.0,0.07356023]
[1772885522517,0.07355212,67979.0,67970.0,0.0002]
[1772885522684,0.00682396,67978.0,67970.0,0.0002]
[1772885523642,0.00682396,67978.0,67967.0,0.00148]
[1772885525053,0.08037825,67977.0,67968.0,0.07356403]
[1772885525311,0.07355429,67977.0,67968.0,0.07356403]
[1772885525506,0.00682396,67976.0,67968.0,0.07356403]
[1772885525959,0.00718126,67976.0,67968.0,0.07356403]
[1772885527430,0.07355645,67975.0,67968.0,0.07356403]
[1772885527986,0.07391375,67975.0,67968.0,0.07356403]
[1772885528310,0.07391375,67975.0,67968.0,0.05491005]
[1772885528547,0.08083199,67975.0,67968.0,0.05491005]
[1772885529086,0.08083199,67975.0,67968.0,0.05511005]
[1772885530084,0.0001221,67979.0,67969.0,0.01959248]
[1772885530377,0.07388778,67985.0,67968.0,0.05511005]
[1772885530378,0.07354904,67982.0,67972.0,0.00653898]
[1772885530575,0.07539721,67984.0,67973.0,0.00653898]
[1772885530784,0.07539721,67984.0,67974.0,0.00653898]
[1772885530989,0.07391674,67984.0,67974.0,0.00653898]
[1772885531312,0.07376794,67983.0,67974.0,0.00653898]
[1772885532146,0.07376794,67983.0,67975.0,0.08009543]
[1772885533072,0.00037001,67984.0,67976.0,0.00653898]
[1772885533651,0.00022001,67987.0,67976.0,0.00653898]
[1772885533850,0.00022001,67987.0,67978.0,0.00653898]
[1772885534101,0.00022001,67987.0,67979.0,0.00653898]
[1772885534291,0.00022001,67987.0,67980.0,0.08009002]
[1772885534512,0.00022001,67987.0,67981.0,0.00653898]
[1772885536419,0.00022001,67987.0,67982.0,0.08008786]
[1772885537786,0.00022001,67990.0,67983.0,0.00653898]
[1772885538816,0.00022001,67990.0,67984.0,0.07354671]
[1772885542747,0.00022001,67990.0,67981.0,0.07354888]
[1772885542958,0.00062206,67989.0,67981.0,0.07354888]
[1772885547008,0.00062206,67989.0,67981.0,0.08008786]
[1772885548914,0.07353961,67992.0,67982.0,0.01959248]
[1772885549147,7.236e-05,67992.0,67984.0,0.08008569]
[1772885549697,0.00022001,67989.0,67984.0,0.07354671]
[1772885555214,0.00022001,67989.0,67981.0,0.0002]
[1772885558625,0.07376172,67989.0,67981.0,0.0002]
[1772885566350,0.07354075,67990.0,67982.0,0.00681381]
[1772885568937,0.07354075,67990.0,67983.0,0.07354779]
[1772885577062,0.07354075,67990.0,67982.0,0.0002]
[1772885578946,0.07376076,67990.0,67982.0,0.0002]
[1772885586998,0.07376024,67990.0,67982.0,0.00682005]
[1772885587190,0.07383092,67992.0,67984.0,0.00662005]
[1772885589437,0.07383092,67992.0,67985.0,0.07354563]